fUST/lending_fUST_20250411
["ID","MTS","AMOUNT","RATE_DAILY","PERIOD"]
[357713921,1744383002822,-1732.18264264,0.00023659,4]
[357713922,1744383002847,-402.0,0.00023819,2]
[357713923,1744383002873,-543.0,0.00023819,2]
[357713924,1744383002899,-706.0,0.00023819,2]
[357713925,1744383002928,-2519.58309753,0.000239,2]
[357713926,1744383002954,-478.7661899,0.000239,2]
[357713927,1744383002980,-500.0,0.00023973,2]
[357713928,1744383003005,-500.0,0.00023973,2]
[357713929,1744383003038,-500.0,0.00023973,2]
[357713930,1744383003065,-500.0,0.00023973,2]
[357713931,1744383003092,-500.0,0.00023973,2]
[357713932,1744383003118,-500.0,0.00023973,2]
[357713933,1744383003143,-500.0,0.00023973,2]
[357713934,1744383003172,-526.97767361,0.00023973,2]
[357713935,1744383003199,-500.0,0.00023973,2]
[357713936,1744383003225,-500.0,0.00023973,2]
[357713937,1744383003251,-500.0,0.00023973,2]
[357713938,1744383003279,-169.655,0.00023973,5]
[357713939,1744383003305,-479.51504517,0.00023999,2]
[357713940,1744383003331,-405.85898493,0.00023999,3]
[357713941,1744383003357,-24222.55778783,0.00023999,2]
[357713942,1744383003382,-1000.0,0.00024,14]
[357713943,1744383003409,-40010.12363651,0.00024,5]
[357713944,1744383003442,-1732.18264264,0.00024417,5]
[357713945,1744383003469,-274.89,0.00024441,3]
[357713946,1744383003495,-824.68,0.00024441,3]
[357713947,1744383003522,-17681.91609347,0.00024451,2]
[357713948,1744383003547,-1000.0,0.00024521,2]
[357713949,1744383003572,-250.0,0.000246,2]
[357713950,1744383003598,-250.0,0.000246,2]
[357713951,1744383003623,-250.0,0.000246,2]
[357713952,1744383003652,-151.0,0.00024651,7]
[357713953,1744383003686,-151.0,0.00024651,7]
[357713954,1744383003713,-183.749952,0.00024651,7]
[357713955,1744383003755,-151.0,0.00024651,7]
[357713956,1744383003786,-500.12285349,0.00024673,2]
[357713957,1744383003814,-500.0,0.00024673,2]
[357713958,1744383003842,-500.0,0.00024673,2]
[357713959,1744383003873,-500.0,0.00024673,2]
[357713960,1744383003902,-500.0,0.00024673,2]
[357713961,1744383003930,-500.0,0.00024673,2]
[357713962,1744383003958,-500.0,0.00024673,2]
[357713963,1744383003985,-500.0,0.00024673,2]
[357713964,1744383004012,-403.42645973,0.00024673,2]
[357713965,1744383004039,-503.7394579,0.00024673,2]
[357713966,1744383004066,-500.0,0.00024673,2]
[357713967,1744383004093,-512.28105919,0.00024673,2]
[357713968,1744383004119,-499.58237958,0.00024673,2]
[357713969,1744383004145,-500.0,0.00024673,2]
[357713970,1744383004172,-503.61654318,0.00024673,2]
[357713971,1744383004198,-500.0,0.00024673,2]
[357713972,1744383004224,-500.0,0.00024673,2]
[357713973,1744383004251,-500.0,0.00024673,2]
[357713974,1744383004277,-500.0,0.00024673,2]
[357713975,1744383004304,-500.0,0.00024673,2]
[357713976,1744383004331,-500.0,0.00024673,2]
[357713977,1744383004358,-500.0,0.00024673,2]
[357713978,1744383004383,-604.86472669,0.00024673,2]
[357713979,1744383004411,-500.0,0.00024873,2]
[357713980,1744383004439,-500.0,0.00024873,2]
[357713981,1744383004468,-500.0,0.00024873,2]
[357713982,1744383004493,-500.0,0.00024873,2]
[357713983,1744383004519,-500.0,0.00024873,2]
[357713984,1744383004544,-500.0,0.00024873,2]
[357713985,1744383004571,-500.0,0.00024873,2]
[357713986,1744383004826,-500.0,0.00024873,2]
[357713987,1744383004859,-621.43693092,0.00024873,2]
[357713988,1744383004886,-500.0,0.00024873,2]
[357713989,1744383004911,-500.0,0.00024873,2]
[357713990,1744383004938,-500.0,0.00024873,2]
[357713991,1744383004964,-300.0,0.00024873,2]
[357713992,1744383004989,-500.0,0.00024873,2]
[357713993,1744383005014,-500.0,0.00024873,2]
[357713994,1744383005040,-500.0,0.00024873,2]
[357713995,1744383005065,-500.0,0.00024873,2]
[357713996,1744383005089,-505.27464665,0.00024873,2]
[357713997,1744383005114,-500.0,0.00024873,2]
[357713998,1744383005138,-500.0,0.00024873,2]
[357713999,1744383005162,-151.0,0.000249,7]
[357714000,1744383005187,-151.0,0.000249,7]
[357714001,1744383005212,-151.0,0.000249,7]
[357714002,1744383005237,-151.0,0.000249,7]
[357714003,1744383005262,-151.0,0.000249,7]
[357714004,1744383005287,-151.0,0.000249,7]
[357714005,1744383005312,-151.0,0.000249,7]
[357714006,1744383005336,-151.0,0.000249,7]
[357714007,1744383005360,-151.0,0.000249,7]
[357714008,1744383005386,-529444.230826,0.000249,2]
[357714009,1744383005414,-151.0,0.000249,7]
[357714010,1744383005440,-367.1880661,0.00024942,2]
[357714011,1744383005465,-15000.0,0.00025,5]
[357714012,1744383005494,-1500.0,0.00025068,2]
[357714013,1744383005519,-1732.18264264,0.00025176,5]
[357714014,1744383005548,-8027.0,0.00025205,2]
[357714015,1744383005573,-153.386195,0.00025205,7]
[357714016,1744383005599,-151.0,0.00025348,7]
[357714017,1744383005629,-151.0,0.00025616,7]
[357714018,1744383005656,-151.0,0.00025616,7]
[357714019,1744383005688,-151.0,0.00025616,7]
[357714020,1744383005718,-151.0,0.00025616,7]
[357714021,1744383005753,-162.34188,0.00025616,7]
[357714022,1744383005780,-2000.0,0.00025616,2]
[357714023,1744383005807,-549.78,0.00025811,3]
[357714024,1744383005834,-1732.18264264,0.00025934,6]
[357714025,1744383005859,-151.0,0.00026072,7]
[357714026,1744383005886,-151.0,0.00026072,7]
[357714027,1744383005912,-264722.115413,0.00026154,2]
[357714028,1744383005941,-2500.0,0.00026164,2]
[357714029,1744383005967,-960.5942524,0.00026374,4]
[357714030,1744383005992,-32754.99027513,0.00026406,2]
[357714031,1744383006024,-215.5,0.000266,31]
[357714032,1744383006054,-215.5,0.000266,31]
[357714033,1744383006085,-215.5,0.000266,31]
[357714034,1744383006116,-215.5,0.000266,31]
[357714035,1744383006145,-215.5,0.000266,31]
[357714036,1744383006177,-215.5,0.000266,31]
[357714037,1744383006207,-215.5,0.000266,31]
[357714038,1744383006240,-215.5,0.000266,31]
[357714039,1744383006273,-215.5,0.000266,31]
[357714040,1744383006304,-215.5,0.000266,31]
[357714041,1744383006335,-215.5,0.000266,31]
[357714042,1744383006365,-215.5,0.000266,31]
[357714043,1744383006390,-151.0,0.00026641,7]
[357714044,1744383006414,-928.77029631,0.00026651,2]
[357714045,1744383006438,-505.42002254,0.00026673,2]
[357714046,1744383006462,-500.0,0.00026673,2]
[357714047,1744383006486,-500.0,0.00026673,2]
[357714048,1744383006510,-500.0,0.00026673,2]
[357714049,1744383006533,-500.0,0.00026673,2]
[357714050,1744383006556,-500.0,0.00026673,2]
[357714051,1744383006579,-500.0,0.00026673,2]
[357714052,1744383006603,-1732.18264264,0.00026693,6]
[357714053,1744383006628,-3000.0,0.00026712,2]
[357714054,1744383006655,-500.0,0.00026773,2]
[357714055,1744383006682,-151.0,0.00026787,7]
[357714056,1744383006709,-151.0,0.00026787,7]
[357714057,1744383006736,-157.652878,0.00026787,7]
[357714058,1744383006760,-2519.58309749,0.00026789,2]
[357714059,1744383006784,-402.0,0.00026819,2]
[357714060,1744383006808,-543.0,0.00026819,2]
[357714061,1744383006832,-706.0,0.00026819,2]
[357714062,1744383006855,-151.0,0.00027187,7]
[357714063,1744383006879,-151.0,0.00027187,7]
[357714064,1744383006903,-54029.43672137,0.00027197,120]
[357714065,1744383006929,-152.788666,0.00027197,7]
[357714066,1744383006955,-155.712246,0.00027197,7]
[357714067,1744383006980,-151.0,0.00027197,7]
[357714068,1744383007005,-151.0,0.00027197,7]
[357714069,1744383007030,-153.178815,0.00027197,7]
[357714070,1744383007055,-175.800413,0.00027197,7]
[357714071,1744383007080,-151.0,0.00027197,7]
[357714072,1744383007104,-153.039312,0.00027197,7]
[357714073,1744383007128,-151.0,0.00027197,7]
[357714074,1744383007152,-151.0,0.00027197,7]
[357714075,1744383007178,-196.037838,0.00027197,7]
[357714076,1744383007203,-151.0,0.00027197,7]
[357714077,1744383007227,-164.685846,0.00027197,7]
[357714078,1744383007251,-3500.0,0.0002726,2]
[357714079,1744383007275,-162.47144702,0.00027397,2]
[357714080,1744383007298,-500.0,0.00027397,2]
[357714081,1744383007322,-500.0,0.00027397,2]
[357714082,1744383007346,-500.0,0.00027397,2]
[357714083,1744383007370,-500.0,0.00027397,2]
[357714084,1744383007394,-500.0,0.00027397,2]
[357714085,1744383007420,-500.0,0.00027397,2]
[357714086,1744383007445,-500.0,0.00027397,2]
[357714087,1744383007470,-500.0,0.00027397,2]
[357714088,1744383007495,-500.0,0.00027397,2]
[357714089,1744383007520,-500.0,0.00027397,2]
[357714090,1744383007546,-500.0,0.00027397,2]
[357714091,1744383007728,-500.0,0.00027397,2]
[357714092,1744383007754,-500.0,0.00027397,2]
[357714093,1744383007778,-500.0,0.00027397,2]
[357714094,1744383007803,-500.0,0.00027397,2]
[357714095,1744383007827,-500.0,0.00027397,2]
[357714096,1744383007850,-500.0,0.00027397,2]
[357714097,1744383007874,-500.0,0.00027397,2]
[357714098,1744383007897,-554.98450047,0.00027397,2]
[357714099,1744383007921,-219.630425,0.00027397,120]
[357714100,1744383007946,-1732.18264264,0.00027452,7]
[357714101,1744383007970,-1040.19741687,0.00027509,2]
[357714102,1744383007997,-4019.18095539,0.00027808,3]
[357714103,1744383008021,-250.0,0.00027945,5]
[357714104,1744383008045,-250.0,0.00027945,5]
[357714105,1744383008071,-1732.18264264,0.0002821,7]
[357714106,1744383008096,-201.88356201,0.00028493,5]
[357714107,1744383008120,-385.82675463,0.00028493,5]
[357714108,1744383008145,-1732.18264264,0.00028969,8]
[357714109,1744383008171,-151.0,0.00028969,7]
[357714110,1744383008198,-500.0,0.00028999,2]
[357714111,1744383008226,-500.0,0.00028999,2]
[357714112,1744383008250,-151.0,0.00028999,7]
[357714113,1744383008276,-151.0,0.00028999,7]
[357714114,1744383008300,-871.12970712,0.00029,2]
[357714115,1744383008326,-3627.09180899,0.00029,7]
[357714116,1744383008352,-3627.09180899,0.00029,7]
[357714117,1744383008378,-5642.87627016,0.00029,7]
[357714118,1744383008403,-5642.87627016,0.00029,7]
[357714119,1744383008429,-5647.45429073,0.00029,7]
[357714120,1744383008455,-5647.45429073,0.00029,7]
[357714121,1744383008480,-153.348686,0.00029,7]
[357714122,1744383008506,-152.027562,0.00029,7]
[357714123,1744383008530,-151.0,0.00029,7]
[357714124,1744383008554,-151.0,0.00029,7]
[357714125,1744383008579,-151.0,0.00029,7]
[357714126,1744383008604,-151.0,0.00029,7]
[357714127,1744383008629,-500.0,0.00029051,2]
[357714128,1744383008657,-2100.0,0.00029196,2]
[357714129,1744383008682,-500.0,0.00029211,2]
[357714130,1744383008708,-2100.0,0.00029248,2]
[357714131,1744383008734,-1000.0,0.00029452,5]
[357714132,1744383008759,-550.64139599,0.00029452,5]
[357714133,1744383008783,-1000.0,0.00029452,5]
[357714134,1744383008806,-1000.0,0.00029452,5]
[357714135,1744383008831,-1000.0,0.00029452,5]
[357714136,1744383008855,-1000.0,0.00029452,5]
[357714137,1744383008879,-1000.0,0.00029452,5]
[357714138,1744383008904,-1000.0,0.00029452,5]
[357714139,1744383008929,-1000.0,0.00029452,5]
[357714140,1744383008962,-266.3611142,0.00029593,30]
[357714141,1744383008992,-153.0,0.00029593,30]
[357714142,1744383009020,-153.0,0.00029593,30]
[357714143,1744383009046,-2519.58309749,0.00029678,2]
[357714144,1744383009076,-1732.18264264,0.00029728,8]
[357714145,1744383009102,-402.0,0.00029819,2]
[357714146,1744383009128,-301.58422231,0.00029973,5]
[357714147,1744383009155,-500.0,0.00029999,2]
[357714148,1744383009182,-37537.55519527,0.0003,7]
[357714149,1744383009207,-384.0,0.0003,10]
[357714150,1744383009232,-1000.0,0.0003,2]
[357714151,1744383009258,-2414.0,0.0003,5]
[357714152,1744383009284,-1000.0,0.0003,7]
[357714153,1744383009310,-2000.0,0.0003,3]
[357714154,1744383009336,-245767.45581842,0.0003,7]
[357714155,1744383009361,-628.98142663,0.0003,15]
[357714156,1744383009387,-151.0,0.0003,7]
[357714157,1744383009412,-151.0,0.0003,7]
[357714158,1744383009439,-160.375784,0.0003,7]
[357714159,1744383009470,-151.0,0.0003,7]
[357714160,1744383009496,-151.0,0.0003,7]
[357714161,1744383009523,-151.0,0.0003,7]
[357714162,1744383009550,-151.0,0.0003,7]
[357714163,1744383009576,-267.0,0.0003,2]
[357714164,1744383009602,-151.0,0.00030062,7]
[357714165,1744383009628,-2100.0,0.0003008,7]
[357714166,1744383009656,-1000.0,0.00030152,5]
[357714167,1744383009683,-634.7857517,0.00030152,5]
[357714168,1744383009712,-1000.0,0.00030152,2]
[357714169,1744383009738,-1000.0,0.00030152,5]
[357714170,1744383009764,-885.31755339,0.00030152,5]
[357714171,1744383009790,-1000.0,0.00030152,5]
[357714172,1744383009817,-1000.0,0.00030152,5]
[357714173,1744383009841,-652.5135653,0.00030152,5]
[357714174,1744383009866,-2100.0,0.00030184,7]
[357714175,1744383009892,-1000.0,0.00030249,7]
[357714176,1744383009919,-151.0,0.00030352,7]
[357714177,1744383009945,-509.24867937,0.00030352,5]
[357714178,1744383009970,-1000.0,0.00030352,5]
[357714179,1744383009995,-501.18327607,0.00030352,5]
[357714180,1744383010021,-199.76117733,0.00030352,5]
[357714181,1744383010047,-1000.0,0.00030352,5]
[357714182,1744383010075,-257.08260403,0.00030352,5]
[357714183,1744383010105,-1000.0,0.00030352,5]
[357714184,1744383010136,-1000.0,0.00030352,5]
[357714185,1744383010164,-1000.0,0.00030352,5]
[357714186,1744383010197,-1000.0,0.00030352,5]
[357714187,1744383010225,-1076.4457721,0.00030352,5]
[357714188,1744383010251,-1000.0,0.00030352,5]
[357714189,1744383010279,-1000.0,0.00030352,5]
[357714190,1744383010306,-289.90502032,0.00030352,5]
[357714191,1744383010331,-511.23312873,0.00030352,5]
[357714192,1744383010361,-1000.0,0.00030352,5]
[357714193,1744383010388,-1000.0,0.00030352,5]
[357714194,1744383010416,-1732.18264264,0.00030486,9]
[357714195,1744383010658,-5000.0,0.00030842,2]
[357714196,1744383010687,-1000.0,0.00030914,7]
[357714197,1744383010712,-1000.0,0.00030932,7]
[357714198,1744383010739,-500.0,0.0003094,7]
[357714199,1744383010764,-300.96395565,0.0003099,2]
[357714200,1744383010791,-151.0,0.00031,7]
[357714201,1744383010819,-2100.0,0.00031121,7]
[357714202,1744383010847,-151.0,0.00031141,7]
[357714203,1744383010875,-151.0,0.00031141,7]
[357714204,1744383010903,-2100.0,0.00031243,7]
[357714205,1744383010937,-1732.18264264,0.00031245,9]
[357714206,1744383010972,-215.5,0.000313,31]
[357714207,1744383011005,-215.5,0.000313,31]
[357714208,1744383011038,-215.5,0.000313,31]
[357714209,1744383011069,-215.5,0.000313,31]
[357714210,1744383011100,-215.5,0.000313,31]
[357714211,1744383011130,-215.5,0.000313,31]
[357714212,1744383011160,-215.5,0.000313,31]
[357714213,1744383011191,-215.5,0.000313,31]
[357714214,1744383011221,-215.5,0.000313,31]
[357714215,1744383011251,-215.5,0.000313,31]
[357714216,1744383011280,-215.5,0.000313,31]
[357714217,1744383011311,-215.5,0.000313,31]
[357714218,1744383011342,-215.5,0.000313,31]
[357714219,1744383011373,-215.5,0.000313,31]
[357714220,1744383011406,-215.5,0.000313,31]
[357714221,1744383011440,-215.5,0.000313,31]
[357714222,1744383011470,-215.5,0.000313,31]
[357714223,1744383011500,-215.5,0.000313,31]
[357714224,1744383011530,-215.5,0.000313,31]
[357714225,1744383011560,-215.5,0.000313,31]
[357714226,1744383011590,-215.5,0.000313,31]
[357714227,1744383011620,-215.5,0.000313,31]
[357714228,1744383011653,-215.5,0.000313,31]
[357714229,1744383011683,-215.5,0.000313,31]
[357714230,1744383011709,-2100.0,0.00031474,7]
[357714231,1744383011735,-2100.0,0.00031553,7]
[357714232,1744383011762,-928.77029631,0.00031651,2]
[357714233,1744383011786,-2100.0,0.00031717,7]
[357714234,1744383011811,-2100.0,0.00031811,7]
[357714235,1744383011835,-153.0,0.00031819,30]
[357714236,1744383011859,-219.630425,0.00031963,120]
[357714237,1744383011884,-1732.18264264,0.00032003,10]
[357714238,1744383011909,-2100.0,0.00032095,7]
[357714239,1744383011935,-1000.0,0.00032152,5]
[357714240,1744383011959,-1000.0,0.00032152,5]
[357714241,1744383011982,-1000.0,0.00032152,5]
[357714242,1744383012006,-1000.0,0.00032152,5]
[357714243,1744383012030,-1000.0,0.00032152,5]
[357714244,1744383012055,-1000.0,0.00032152,5]
[357714245,1744383012080,-2100.0,0.00032219,7]
[357714246,1744383012105,-1000.0,0.00032252,5]
[357714247,1744383012130,-1000.0,0.00032537,7]
[357714248,1744383012155,-2519.58309749,0.00032567,2]
[357714249,1744383012182,-1000.0,0.00032643,7]
[357714250,1744383012208,-1000.0,0.00032664,7]
[357714251,1744383012235,-1732.18264264,0.00032762,10]
[357714252,1744383012260,-507.28805268,0.00032864,7]
[357714253,1744383012286,-174.36496,0.00032877,14]
[357714254,1744383012311,-174.36496,0.00032877,14]
[357714255,1744383012336,-174.36496,0.00032877,14]
[357714256,1744383012364,-174.36496,0.00032877,14]
[357714257,1744383012388,-174.36496,0.00032877,14]
[357714258,1744383012414,-174.36496,0.00032877,14]
[357714259,1744383012440,-174.36496,0.00032877,14]
[357714260,1744383012465,-174.36496,0.00032877,14]
[357714261,1744383012491,-174.36496,0.00032877,14]
[357714262,1744383012516,-174.36496,0.00032877,14]
[357714263,1744383012541,-174.36496,0.00032877,14]
[357714264,1744383012569,-174.36496,0.00032877,14]
[357714265,1744383012594,-174.36496,0.00032877,14]
[357714266,1744383012620,-174.36496,0.00032877,14]
[357714267,1744383012646,-174.36496,0.00032877,14]
[357714268,1744383012674,-174.36496,0.00032877,14]
[357714269,1744383012699,-174.36496,0.00032877,14]
[357714270,1744383012724,-174.36496,0.00032877,14]
[357714271,1744383012752,-174.36496,0.00032877,14]
[357714272,1744383012777,-174.364969,0.00032877,14]
[357714273,1744383012802,-1014.0,0.00032877,30]
[357714274,1744383012827,-360.3165844,0.00032883,30]
[357714275,1744383012852,-360.3165844,0.00032883,30]
[357714276,1744383012877,-360.3165844,0.00032883,30]
[357714277,1744383012901,-360.3165844,0.00032883,30]
[357714278,1744383012927,-1361.95,0.000329,7]
[357714279,1744383012952,-3288.79,0.000329,30]
[357714280,1744383012978,-500.0,0.0003296,7]
[357714281,1744383013004,-2100.0,0.00032986,7]
[357714282,1744383013031,-16379.0,0.00033,2]
[357714283,1744383013056,-151.0,0.00033,14]
[357714284,1744383013082,-267.0,0.00033,2]
[357714285,1744383013107,-267.0,0.00033,2]
[357714286,1744383013132,-1000.0,0.00033058,7]
[357714287,1744383013159,-540.1171875,0.00033099,2]
[357714288,1744383013183,-1473.52,0.000331,30]
[357714289,1744383013210,-2245.95,0.000331,30]
[357714290,1744383013236,-93802.8,0.000331,30]
[357714291,1744383013261,-156.49085184,0.000331,2]
[357714292,1744383013287,-151.0,0.000331,14]
[357714293,1744383013313,-500.0,0.00033108,7]
[357714294,1744383013497,-1000.0,0.00033195,7]
[357714295,1744383013537,-500.0,0.00033275,7]
[357714296,1744383013563,-2100.0,0.00033296,7]
[357714297,1744383013588,-500.0,0.00033331,7]
[357714298,1744383013615,-1732.18264264,0.00033521,11]
[357714299,1744383013640,-359.4787034,0.00033842,30]
[357714300,1744383013666,-1000.0,0.00033882,7]
[357714301,1744383013694,-1000.0,0.00034,3]
[357714302,1744383013719,-541.59358428,0.00034,7]
[357714303,1744383013745,-500.0,0.00034072,7]
[357714304,1744383013771,-260.5,0.00034092,30]
[357714305,1744383013796,-3288.79,0.000341,30]
[357714306,1744383013822,-153.0,0.00034115,30]
[357714307,1744383013847,-153.0,0.00034115,30]
[357714308,1744383013872,-564.6420217,0.00034115,30]
[357714309,1744383013898,-213.4946232,0.00034115,30]
[357714310,1744383013925,-564.6420217,0.00034115,30]
[357714311,1744383013952,-156.7645321,0.00034115,30]
[357714312,1744383013978,-213.4946232,0.00034115,30]
[357714313,1744383014004,-564.6420217,0.00034115,30]
[357714314,1744383014031,-156.7645321,0.00034115,30]
[357714315,1744383014057,-213.4946232,0.00034115,30]
[357714316,1744383014084,-564.6420217,0.00034115,30]
[357714317,1744383014109,-156.7645321,0.00034115,30]
[357714318,1744383014134,-190.6252225,0.00034115,30]
[357714319,1744383014159,-184.021407,0.00034115,30]
[357714320,1744383014186,-156.7645321,0.00034115,30]
[357714321,1744383014212,-156.7645321,0.00034115,30]
[357714322,1744383014238,-156.7645321,0.00034115,30]
[357714323,1744383014265,-156.7645321,0.00034115,30]
[357714324,1744383014290,-156.7645321,0.00034115,30]
[357714325,1744383014316,-156.7645321,0.00034115,30]
[357714326,1744383014342,-156.7645321,0.00034115,30]
[357714327,1744383014368,-156.7645321,0.00034115,30]
[357714328,1744383014395,-156.7645321,0.00034115,30]
[357714329,1744383014421,-2100.0,0.00034122,7]
[357714330,1744383014446,-5000.0,0.00034176,2]
[357714331,1744383014472,-1732.18264264,0.00034279,11]
[357714332,1744383014497,-632.0,0.000344,2]
[357714333,1744383014522,-156.49085179,0.00034405,2]
[357714334,1744383014547,-500.0,0.00034639,7]
[357714335,1744383014572,-1361.95,0.000347,7]
[357714336,1744383014597,-2100.0,0.00034759,7]
[357714337,1744383014622,-1580.45891784,0.00034796,2]
[357714338,1744383014647,-1000.0,0.00034821,7]
[357714339,1744383014677,-191.0979273,0.00034832,7]
[357714340,1744383014705,-1000.0,0.00034838,7]
[357714341,1744383014731,-3135.50288657,0.0003487,4]
[357714342,1744383014757,-156.7645321,0.00034937,30]
[357714343,1744383014782,-10570.42161633,0.00035,2]
[357714344,1744383014807,-726.83985423,0.00035,120]
[357714345,1744383014833,-1000.0,0.00035,2]
[357714346,1744383014857,-151.0,0.00035,14]
[357714347,1744383014881,-2000.0,0.00035,14]
[357714348,1744383014906,-2233.0,0.00035,14]
[357714349,1744383014929,-1009.57,0.00035,120]
[357714350,1744383014954,-1000.0,0.00035,14]
[357714351,1744383014978,-1000.0,0.00035,14]
[357714352,1744383015003,-1000.0,0.00035,14]
[357714353,1744383015028,-1000.0,0.00035,14]
[357714354,1744383015054,-2100.0,0.00035011,7]
[357714355,1744383015079,-1732.18264264,0.00035038,12]
[357714356,1744383015103,-499.3,0.00035174,7]
[357714357,1744383015129,-2100.0,0.00035294,7]
[357714358,1744383015154,-3288.79,0.000353,30]
[357714359,1744383015179,-500.0,0.00035387,7]
[357714360,1744383015206,-2519.58309749,0.00035457,2]
[357714361,1744383015232,-500.0,0.00035546,7]
[357714362,1744383015257,-400.0,0.00035616,60]
[357714363,1744383015283,-436.61779613,0.00035616,7]
[357714364,1744383015309,-151.0,0.00035616,14]
[357714365,1744383015334,-151.0,0.00035616,14]
[357714366,1744383015360,-237.514483,0.00035616,14]
[357714367,1744383015385,-500.0,0.00035617,7]
[357714368,1744383015411,-156.49085179,0.00035711,2]
[357714369,1744383015437,-200.0,0.0003576,43]
[357714370,1744383015464,-1732.18264264,0.00035797,12]
[357714371,1744383015501,-2100.0,0.00035825,7]
[357714372,1744383015531,-500.0,0.00035888,7]
[357714373,1744383015560,-2100.0,0.00035956,7]
[357714374,1744383015589,-2100.0,0.0003598,7]
[357714375,1744383015618,-970.83034834,0.00036,120]
[357714376,1744383015646,-7751.06657903,0.00036,2]
[357714377,1744383015676,-204.38,0.00036,86]
[357714378,1744383015704,-267.0,0.00036,2]
[357714379,1744383015731,-267.0,0.00036,2]
[357714380,1744383015757,-267.0,0.00036,2]
[357714381,1744383015790,-215.5,0.00036,31]
[357714382,1744383015823,-215.5,0.00036,31]
[357714383,1744383015856,-215.5,0.00036,31]
[357714384,1744383015888,-215.5,0.00036,31]
[357714385,1744383015920,-215.5,0.00036,31]
[357714386,1744383015952,-215.5,0.00036,31]
[357714387,1744383015983,-215.5,0.00036,31]
[357714388,1744383016013,-215.5,0.00036,31]
[357714389,1744383016045,-215.5,0.00036,31]
[357714390,1744383016075,-215.5,0.00036,31]
[357714391,1744383016341,-215.5,0.00036,31]
[357714392,1744383016372,-215.5,0.00036,31]
[357714393,1744383016403,-215.5,0.00036,31]
[357714394,1744383016436,-215.5,0.00036,31]
[357714395,1744383016467,-215.5,0.00036,31]
[357714396,1744383016497,-215.5,0.00036,31]
[357714397,1744383016529,-215.5,0.00036,31]
[357714398,1744383016558,-215.5,0.00036,31]
[357714399,1744383016588,-215.5,0.00036,31]
[357714400,1744383016618,-215.5,0.00036,31]
[357714401,1744383016650,-215.5,0.00036,31]
[357714402,1744383016680,-215.5,0.00036,31]
[357714403,1744383016710,-215.5,0.00036,31]
[357714404,1744383016742,-215.5,0.00036,31]
[357714405,1744383016766,-1000.0,0.00036011,7]
[357714406,1744383016793,-1000.0,0.00036093,7]
[357714407,1744383016819,-500.0,0.00036148,7]
[357714408,1744383016843,-1361.95,0.000362,7]
[357714409,1744383016869,-157.13815641,0.000362,98]
[357714410,1744383016894,-201.64565875,0.0003621,2]
[357714411,1744383016919,-262.28279281,0.0003624,2]
[357714412,1744383016946,-500.0,0.00036394,7]
[357714413,1744383016973,-151.0,0.00036471,14]
[357714414,1744383016998,-666.75574882,0.000365,120]
[357714415,1744383017025,-500.0,0.00036529,7]
[357714416,1744383017051,-219.630425,0.0003653,120]
[357714417,1744383017078,-1732.18264264,0.00036555,13]
[357714418,1744383017105,-2100.0,0.00036576,7]
[357714419,1744383017129,-2100.0,0.00036632,7]
[357714420,1744383017155,-3288.79,0.000367,30]